fUST/lending_fUST_20250216
["ID","MTS","AMOUNT","RATE_DAILY","PERIOD"]
[353239897,1739704240820,-500.0,8.764e-05,2]
[353239898,1739704240830,-205.1832267,8.764e-05,2]
[353239899,1739704240840,-500.0,8.764e-05,2]
[353239900,1739704240851,-500.0,8.764e-05,2]
[353239901,1739704240861,-500.0,8.764e-05,2]
[353239902,1739704240870,-500.0,8.764e-05,2]
[353239903,1739704240880,-500.0,8.764e-05,2]
[353239904,1739704240890,-500.0,8.764e-05,2]
[353239905,1739704240899,-560.74,8.764e-05,2]
[353239906,1739704240909,-500.0,8.764e-05,2]
[353239907,1739704240918,-500.0,8.764e-05,2]
[353239908,1739704240928,-500.0,8.764e-05,2]
[353239909,1739704240937,-1254.37,8.764e-05,2]
[353239910,1739704240947,-500.0,8.764e-05,2]
[353239911,1739704240957,-500.0,8.764e-05,2]
[353239912,1739704240967,-500.0,8.764e-05,2]
[353239913,1739704240980,-500.0,8.764e-05,2]
[353239914,1739704240991,-2075.44,8.764e-05,2]
[353239915,1739704241000,-946.96,8.764e-05,2]
[353239916,1739704241010,-496.68475673,8.764e-05,2]
[353239917,1739704241019,-1790.04,8.764e-05,2]
[353239918,1739704241031,-280.35,8.805e-05,2]
[353239919,1739704241041,-156.63103748,8.806e-05,2]
[353239920,1739704241051,-314.0,8.806e-05,2]
[353239921,1739704241061,-314.0,8.806e-05,2]
[353239922,1739704241070,-314.0,8.806e-05,2]
[353239923,1739704241080,-314.0,8.806e-05,2]
[353239924,1739704241090,-314.0,8.806e-05,2]
[353239925,1739704241099,-314.0,8.806e-05,2]
[353239926,1739704241109,-314.0,8.806e-05,2]
[353239927,1739704241118,-314.0,8.806e-05,2]
[353239928,1739704241128,-314.0,8.806e-05,2]
[353239929,1739704241137,-314.0,8.806e-05,2]
[353239930,1739704241147,-314.0,8.806e-05,2]
[353239931,1739704241157,-314.0,8.806e-05,2]
[353239932,1739704241167,-314.0,8.806e-05,2]
[353239933,1739704241176,-314.0,8.806e-05,2]
[353239934,1739704241186,-314.0,8.806e-05,2]
[353239935,1739704241195,-314.0,8.806e-05,2]
[353239936,1739704241204,-314.0,8.806e-05,2]
[353239937,1739704241214,-314.0,8.806e-05,2]
[353239938,1739704241225,-314.0,8.806e-05,2]
[353239939,1739704241235,-314.0,8.806e-05,2]
[353239940,1739704241244,-346.36185749,8.806e-05,2]
[353239941,1739704241254,-406.707,8.81e-05,2]
[353239942,1739704241264,-179.99180864,8.81e-05,2]
[353239943,1739704241274,-1790.04,8.81e-05,2]
[353239944,1739704241284,-150.0,8.811e-05,2]
[353239945,1739704241293,-1844.169,8.811e-05,2]
[353239946,1739704241303,-538.0,8.811e-05,2]
[353239947,1739704241313,-2291.0,8.811e-05,2]
[353239948,1739704241323,-500.0,8.841e-05,2]
[353239949,1739704241333,-500.0,8.842e-05,2]
[353239950,1739704241343,-1254.94,8.842e-05,2]
[353239951,1739704241353,-500.0,8.842e-05,2]
[353239952,1739704241362,-3538.05,8.842e-05,2]
[353239953,1739704241372,-500.0,8.842e-05,2]
[353239954,1739704241382,-500.0,8.842e-05,2]
[353239955,1739704241391,-500.0,8.842e-05,2]
[353239956,1739704241400,-500.0,8.842e-05,2]
[353239957,1739704241410,-2982.34,8.842e-05,2]
[353239958,1739704241419,-7046.29,8.842e-05,2]
[353239959,1739704241428,-1574.08,8.842e-05,2]
[353239960,1739704241438,-1245.65,8.842e-05,2]
[353239961,1739704241448,-2556.71,8.842e-05,2]
[353239962,1739704241458,-500.0,8.842e-05,2]
[353239963,1739704241467,-500.0,8.842e-05,2]
[353239964,1739704241477,-3140.13,8.842e-05,2]
[353239965,1739704241487,-500.0,8.842e-05,2]
[353239966,1739704241496,-500.0,8.842e-05,2]
[353239967,1739704241506,-500.0,8.842e-05,2]
[353239968,1739704241516,-500.0,8.842e-05,2]
[353239969,1739704241525,-681.42,8.842e-05,2]
[353239970,1739704241535,-500.0,8.842e-05,2]
[353239971,1739704241545,-819.65,8.842e-05,2]
[353239972,1739704241554,-500.0,8.842e-05,2]
[353239973,1739704241564,-2539.33,8.842e-05,2]
[353239974,1739704241574,-500.0,8.842e-05,2]
[353239975,1739704241583,-6238.48,8.842e-05,2]
[353239976,1739704241592,-500.0,8.842e-05,2]
[353239977,1739704241602,-965.67,8.842e-05,2]
[353239978,1739704241611,-500.0,8.843e-05,2]
[353239979,1739704241621,-500.0,8.843e-05,2]
[353239980,1739704241631,-500.0,8.843e-05,2]
[353239981,1739704241641,-500.0,8.843e-05,2]
[353239982,1739704241651,-500.0,8.843e-05,2]
[353239983,1739704241660,-500.0,8.843e-05,2]
[353239984,1739704241670,-500.0,8.843e-05,2]
[353239985,1739704241679,-500.0,8.843e-05,2]
[353239986,1739704241689,-500.0,8.843e-05,2]
[353239987,1739704241699,-500.0,8.843e-05,2]
[353239988,1739704241709,-826.71,8.843e-05,2]
[353239989,1739704241720,-500.0,8.843e-05,2]
[353239990,1739704241729,-500.0,8.843e-05,2]
[353239991,1739704241739,-500.0,8.843e-05,2]
[353239992,1739704241749,-513.30374492,8.843e-05,2]
[353239993,1739704241759,-500.0,8.843e-05,2]
[353239994,1739704241768,-500.0,8.843e-05,2]
[353239995,1739704241778,-500.0,8.843e-05,2]
[353239996,1739704241788,-684.66,8.843e-05,2]
[353239997,1739704241797,-500.0,8.843e-05,2]
[353239998,1739704241807,-500.0,8.843e-05,2]
[353239999,1739704241817,-727.98,8.843e-05,2]
[353240000,1739704241826,-500.0,8.843e-05,2]
[353240001,1739704241836,-500.0,8.843e-05,2]
[353240002,1739704241846,-500.0,8.843e-05,2]
[353240003,1739704241855,-500.0,8.843e-05,2]
[353240004,1739704241865,-935.71,8.843e-05,2]
[353240005,1739704241875,-500.0,8.843e-05,2]
[353240006,1739704241885,-512.04073648,8.843e-05,2]
[353240007,1739704241895,-500.0,8.843e-05,2]
[353240008,1739704241904,-500.0,8.843e-05,2]
[353240009,1739704241914,-500.0,8.843e-05,2]
[353240010,1739704241923,-500.0,8.843e-05,2]
[353240011,1739704241932,-477.20512883,8.843e-05,2]
[353240012,1739704241942,-500.0,8.843e-05,2]
[353240013,1739704241952,-500.0,8.843e-05,2]
[353240014,1739704241962,-500.0,8.843e-05,2]
[353240015,1739704241972,-500.0,8.843e-05,2]
[353240016,1739704241986,-500.0,8.843e-05,2]
[353240017,1739704241996,-500.0,8.843e-05,2]
[353240018,1739704242006,-500.0,8.843e-05,2]
[353240019,1739704242016,-723.15,8.843e-05,2]
[353240020,1739704242026,-500.0,8.843e-05,2]
[353240021,1739704242036,-500.0,8.843e-05,2]
[353240022,1739704242045,-500.0,8.843e-05,2]
[353240023,1739704242055,-516.6,8.843e-05,2]
[353240024,1739704242066,-531.69656928,8.843e-05,2]
[353240025,1739704242077,-924.77,8.843e-05,2]
[353240026,1739704242088,-500.0,8.843e-05,2]
[353240027,1739704242098,-500.0,8.843e-05,2]
[353240028,1739704242108,-500.0,8.843e-05,2]
[353240029,1739704242118,-500.0,8.843e-05,2]
[353240030,1739704242128,-500.0,8.843e-05,2]
[353240031,1739704242137,-500.0,8.843e-05,2]
[353240032,1739704242147,-500.0,8.843e-05,2]
[353240033,1739704242157,-500.0,8.843e-05,2]
[353240034,1739704242166,-172.34410959,8.843e-05,2]
[353240035,1739704242175,-500.0,8.843e-05,2]
[353240036,1739704242185,-500.0,8.843e-05,2]
[353240037,1739704242195,-500.0,8.843e-05,2]
[353240038,1739704242204,-500.0,8.843e-05,2]
[353240039,1739704242214,-500.0,8.843e-05,2]
[353240040,1739704242223,-500.0,8.843e-05,2]
[353240041,1739704242233,-773.59,8.843e-05,2]
[353240042,1739704242243,-710.14,8.843e-05,2]
[353240043,1739704242253,-500.0,8.843e-05,2]
[353240044,1739704242262,-500.0,8.843e-05,2]
[353240045,1739704242271,-500.0,8.843e-05,2]
[353240046,1739704242280,-500.0,8.843e-05,2]
[353240047,1739704242290,-500.0,8.843e-05,2]
[353240048,1739704242300,-500.0,8.843e-05,2]
[353240049,1739704242309,-500.0,8.843e-05,2]
[353240050,1739704242319,-500.0,8.843e-05,2]
[353240051,1739704242328,-500.0,8.843e-05,2]
[353240052,1739704242337,-500.0,8.843e-05,2]
[353240053,1739704242347,-500.0,8.843e-05,2]
[353240054,1739704242356,-456.49618601,8.843e-05,2]
[353240055,1739704242365,-673.14,8.843e-05,2]
[353240056,1739704242375,-500.0,8.843e-05,2]
[353240057,1739704242384,-500.0,8.843e-05,2]
[353240060,1739704242476,-500.0,8.843e-05,2]
[353240062,1739704242486,-500.0,8.843e-05,2]
[353240063,1739704242495,-740.6,8.843e-05,2]
[353240064,1739704242505,-500.0,8.843e-05,2]
[353240065,1739704242515,-500.0,8.843e-05,2]
[353240066,1739704242525,-500.0,8.843e-05,2]
[353240067,1739704242534,-500.0,8.843e-05,2]
[353240068,1739704242544,-3064.09,8.843e-05,2]
[353240070,1739704242555,-367.4822932,8.843e-05,2]
[353240072,1739704242564,-500.0,8.843e-05,2]
[353240074,1739704242573,-500.0,8.843e-05,2]
[353240076,1739704242583,-500.0,8.843e-05,2]
[353240078,1739704242593,-1618.41,8.843e-05,2]
[353240080,1739704242602,-515.73,8.843e-05,2]
[353240082,1739704242612,-500.0,8.843e-05,2]
[353240084,1739704242621,-1263.52,8.843e-05,2]
[353240085,1739704242630,-500.0,8.843e-05,2]
[353240086,1739704242640,-500.0,8.843e-05,2]
[353240087,1739704242649,-500.0,8.843e-05,2]
[353240088,1739704242659,-500.0,8.843e-05,2]
[353240089,1739704242669,-15643.94,8.843e-05,2]
[353240090,1739704242678,-500.0,8.843e-05,2]
[353240091,1739704242688,-1790.04,8.843e-05,2]
[353240092,1739704242697,-1790.04,8.843e-05,2]
[353240093,1739704242708,-500.0,8.843e-05,2]
[353240094,1739704242717,-1790.04,8.843e-05,2]
[353240095,1739704242727,-1790.04,8.843e-05,2]
[353240096,1739704242736,-1790.04,8.843e-05,2]
[353240097,1739704242745,-1790.04,8.843e-05,2]
[353240098,1739704242754,-1790.04,8.843e-05,2]
[353240099,1739704242764,-1790.25663798,8.843e-05,2]
[353240100,1739704242773,-888.97,8.843e-05,2]
[353240101,1739704242782,-653.17,8.843e-05,2]
[353240102,1739704242791,-1896.73,8.843e-05,2]
[353240103,1739704242801,-500.0,8.843e-05,2]
[353240104,1739704242810,-1904.48,8.843e-05,2]
[353240105,1739704242819,-993.71,8.843e-05,2]
[353240106,1739704242828,-500.0,8.843e-05,2]
[353240107,1739704242838,-500.0,8.843e-05,2]
[353240108,1739704242847,-1009.9,8.843e-05,2]
[353240109,1739704242857,-1294.49,8.843e-05,2]
[353240110,1739704242866,-500.0,8.843e-05,2]
[353240111,1739704242875,-500.0,8.843e-05,2]
[353240112,1739704242885,-709.78,8.843e-05,2]
[353240113,1739704242894,-500.0,8.843e-05,2]
[353240114,1739704242903,-500.0,8.843e-05,2]
[353240115,1739704242912,-500.0,8.843e-05,2]
[353240116,1739704242922,-500.0,8.843e-05,2]
[353240117,1739704242931,-500.0,8.843e-05,2]
[353240118,1739704242940,-500.0,8.843e-05,2]
[353240119,1739704242949,-500.0,8.843e-05,2]
[353240120,1739704242959,-692.07,8.843e-05,2]
[353240121,1739704242968,-630.46,8.843e-05,2]
[353240122,1739704242980,-500.0,8.843e-05,2]
[353240123,1739704242990,-500.0,8.843e-05,2]
[353240124,1739704242999,-500.0,8.843e-05,2]
[353240125,1739704243009,-500.0,8.843e-05,2]
[353240126,1739704243019,-564.95072286,8.843e-05,2]
[353240127,1739704243029,-500.0,8.843e-05,2]
[353240128,1739704243038,-500.0,8.843e-05,2]
[353240129,1739704243048,-500.0,8.843e-05,2]
[353240130,1739704243059,-500.0,8.843e-05,2]
[353240131,1739704243068,-765.23,8.843e-05,2]
[353240132,1739704243078,-439.75069823,8.843e-05,2]
[353240133,1739704243087,-592.48171807,8.843e-05,2]
[353240134,1739704243096,-500.0,8.843e-05,2]
[353240135,1739704243106,-500.0,8.843e-05,2]
[353240136,1739704243115,-1262.1,8.843e-05,2]
[353240137,1739704243124,-720.73,8.843e-05,2]
[353240138,1739704243133,-530.75,8.843e-05,2]
[353240139,1739704243142,-500.0,8.843e-05,2]
[353240140,1739704243151,-723.9,8.843e-05,2]
[353240141,1739704243160,-758.11,8.843e-05,2]
[353240142,1739704243170,-500.0,8.843e-05,2]
[353240143,1739704243179,-500.0,8.843e-05,2]
[353240144,1739704243189,-500.0,8.843e-05,2]
[353240145,1739704243199,-500.0,8.843e-05,2]
[353240146,1739704243209,-500.0,8.843e-05,2]
[353240147,1739704243218,-500.0,8.843e-05,2]
[353240148,1739704243227,-500.0,8.843e-05,2]
[353240149,1739704243237,-500.0,8.843e-05,2]
[353240150,1739704243246,-500.0,8.843e-05,2]
[353240151,1739704243255,-500.0,8.843e-05,2]
[353240152,1739704243264,-1419.88,8.843e-05,2]
[353240153,1739704243274,-500.0,8.843e-05,2]
[353240154,1739704243283,-500.0,8.843e-05,2]
[353240155,1739704243292,-955.13,8.843e-05,2]
[353240156,1739704243301,-458.36794004,8.843e-05,2]
[353240157,1739704243311,-500.0,8.843e-05,2]
[353240158,1739704243320,-500.0,8.843e-05,2]
[353240159,1739704243329,-3487.54,8.843e-05,2]
[353240160,1739704243338,-500.0,8.843e-05,2]
[353240161,1739704243347,-789.7,8.843e-05,2]
[353240162,1739704243356,-500.0,8.843e-05,2]
[353240163,1739704243365,-500.0,8.843e-05,2]
[353240164,1739704243374,-15663.82,8.843e-05,2]
[353240165,1739704243383,-500.0,8.843e-05,2]
[353240166,1739704243392,-300.97825926,8.843e-05,2]
[353240167,1739704243402,-938.65,8.843e-05,2]
[353240168,1739704243411,-500.0,8.843e-05,2]
[353240170,1739704243420,-500.0,8.843e-05,2]
[353240172,1739704243430,-500.0,8.843e-05,2]
[353240173,1739704243439,-1141.29,8.843e-05,2]
[353240174,1739704243448,-500.0,8.843e-05,2]
[353240175,1739704243457,-502.46304177,8.843e-05,2]
[353240176,1739704243466,-642.93256286,8.843e-05,2]
[353240177,1739704243475,-754.33,8.843e-05,2]
[353240178,1739704243484,-504.50185385,8.843e-05,2]
[353240179,1739704243493,-500.0,8.843e-05,2]
[353240180,1739704243502,-500.0,8.843e-05,2]
[353240181,1739704243511,-504.97403418,8.843e-05,2]
[353240182,1739704243521,-875.53,8.843e-05,2]
[353240183,1739704243530,-500.0,8.843e-05,2]
[353240184,1739704243539,-643.9,8.843e-05,2]
[353240185,1739704243548,-500.0,8.843e-05,2]
[353240186,1739704243557,-985.23,8.843e-05,2]
[353240187,1739704243566,-37932.2,8.843e-05,2]
[353240188,1739704243575,-500.0,8.843e-05,2]
[353240189,1739704243584,-500.0,8.844e-05,2]
[353240190,1739704243593,-500.0,8.844e-05,2]
[353240191,1739704243602,-733.64,8.844e-05,2]
[353240192,1739704243611,-543.15,8.844e-05,2]
[353240193,1739704243620,-685.67,8.844e-05,2]
[353240194,1739704243630,-500.0,8.844e-05,2]
[353240195,1739704243639,-500.0,8.844e-05,2]
[353240196,1739704243648,-2076.7,8.844e-05,2]
[353240197,1739704243657,-500.0,8.844e-05,2]
[353240198,1739704243666,-500.0,8.844e-05,2]
[353240199,1739704243675,-522.75281628,8.844e-05,2]
[353240200,1739704243685,-2061.42,8.844e-05,2]
[353240201,1739704243694,-500.0,8.844e-05,2]
[353240202,1739704243703,-500.0,8.844e-05,2]
[353240203,1739704243714,-500.0,8.844e-05,2]
[353240204,1739704243723,-500.0,8.844e-05,2]
[353240205,1739704243732,-500.0,8.844e-05,2]
[353240206,1739704243741,-538.17,8.844e-05,2]
[353240207,1739704243751,-2056.54,8.844e-05,2]
[353240208,1739704243761,-500.0,8.844e-05,2]
[353240209,1739704243770,-639.77,8.844e-05,2]
[353240210,1739704243779,-516.03,8.844e-05,2]
[353240211,1739704243788,-500.0,8.844e-05,2]
[353240212,1739704243799,-500.0,8.844e-05,2]
[353240213,1739704243808,-500.0,8.844e-05,2]
[353240214,1739704243818,-500.0,8.844e-05,2]
[353240215,1739704243827,-500.0,8.844e-05,2]
[353240216,1739704243836,-500.0,8.844e-05,2]
[353240217,1739704243845,-762.98,8.844e-05,2]
[353240218,1739704243854,-661.44,8.844e-05,2]
[353240219,1739704243863,-471.55603048,8.846e-05,2]
[353240220,1739704243872,-677.92,8.846e-05,2]
[353240221,1739704243882,-500.0,8.846e-05,2]
[353240222,1739704243891,-500.0,8.846e-05,2]
[353240223,1739704243899,-298.20826084,8.846e-05,2]
[353240224,1739704243909,-500.0,8.846e-05,2]
[353240225,1739704243918,-500.0,8.846e-05,2]
[353240226,1739704243928,-508.5085754,8.846e-05,2]
[353240227,1739704243937,-500.0,8.846e-05,2]
[353240228,1739704243946,-500.0,8.846e-05,2]
[353240229,1739704243956,-500.0,8.846e-05,2]
[353240230,1739704243965,-500.0,8.846e-05,2]
[353240231,1739704243975,-1189.36,8.846e-05,2]
[353240232,1739704243987,-500.0,8.846e-05,2]
[353240233,1739704243997,-686.42,8.846e-05,2]
[353240234,1739704244008,-625.51,8.846e-05,2]
[353240235,1739704244100,-534.22713284,8.846e-05,2]
[353240236,1739704244110,-500.0,8.846e-05,2]
[353240237,1739704244119,-642.22015166,8.846e-05,2]
[353240238,1739704244129,-500.0,8.846e-05,2]
[353240239,1739704244139,-500.0,8.846e-05,2]
[353240240,1739704244149,-500.0,8.846e-05,2]
[353240241,1739704244158,-500.0,8.846e-05,2]
[353240242,1739704244168,-700.4,8.846e-05,2]
[353240243,1739704244178,-500.0,8.846e-05,2]
[353240244,1739704244187,-660.94,8.846e-05,2]
[353240245,1739704244197,-500.0,8.846e-05,2]
[353240246,1739704244208,-500.0,8.846e-05,2]
[353240247,1739704244217,-951.56,8.846e-05,2]
[353240248,1739704244226,-500.0,8.846e-05,2]
[353240249,1739704244236,-500.0,8.846e-05,2]
[353240250,1739704244246,-500.0,8.846e-05,2]
[353240251,1739704244257,-500.0,8.846e-05,2]
[353240252,1739704244267,-562.25,8.846e-05,2]
[353240253,1739704244281,-503.50200437,8.846e-05,2]
[353240254,1739704244291,-500.0,8.846e-05,2]
[353240255,1739704244301,-500.0,8.846e-05,2]
[353240256,1739704244311,-565.74,8.846e-05,2]
[353240257,1739704244321,-500.0,8.846e-05,2]
[353240258,1739704244331,-500.0,8.846e-05,2]
[353240259,1739704244341,-500.0,8.846e-05,2]
[353240260,1739704244350,-500.0,8.846e-05,2]
[353240261,1739704244360,-500.0,8.846e-05,2]
[353240262,1739704244369,-500.0,8.846e-05,2]
[353240263,1739704244378,-998.55,8.846e-05,2]
[353240264,1739704244388,-560.74,8.846e-05,2]
[353240265,1739704244397,-500.0,8.846e-05,2]
[353240266,1739704244407,-524.73127876,8.846e-05,2]
[353240267,1739704244416,-500.0,8.846e-05,2]
[353240268,1739704244426,-500.0,8.846e-05,2]
[353240269,1739704244435,-505.08567262,8.846e-05,2]
[353240270,1739704244445,-500.0,8.846e-05,2]
[353240271,1739704244454,-500.0,8.846e-05,2]
[353240272,1739704244465,-1254.37,8.846e-05,2]
[353240273,1739704244474,-500.0,8.846e-05,2]
[353240274,1739704244484,-500.0,8.846e-05,2]
[353240275,1739704244493,-500.0,8.846e-05,2]
[353240276,1739704244503,-547.00765925,8.846e-05,2]
[353240277,1739704244512,-199.23926275,8.846e-05,2]
[353240278,1739704244522,-500.0,8.846e-05,2]
[353240279,1739704244532,-500.0,8.846e-05,2]
[353240280,1739704244541,-500.0,8.846e-05,2]
[353240281,1739704244551,-500.0,8.846e-05,2]
[353240282,1739704244560,-2075.44,8.846e-05,2]
[353240283,1739704244570,-500.0,8.846e-05,2]
[353240284,1739704244580,-946.96,8.846e-05,2]
[353240285,1739704244592,-500.0,8.846e-05,2]
[353240286,1739704244601,-533.62805799,8.846e-05,2]
[353240287,1739704244611,-151.0,8.852e-05,2]
[353240288,1739704244620,-93102.24537573,8.853e-05,2]
[353240289,1739704244630,-150.03,8.853e-05,2]
[353240290,1739704244639,-500.0,8.853e-05,2]
[353240291,1739704244649,-500.0,8.853e-05,2]
[353240292,1739704244663,-150.03,8.853e-05,2]
[353240293,1739704244674,-150.03,8.853e-05,2]
[353240294,1739704244684,-150.03,8.853e-05,2]
[353240295,1739704244693,-217.72055282,8.853e-05,2]
[353240296,1739704244702,-500.0,8.853e-05,2]
[353240297,1739704244712,-500.0,8.853e-05,2]
[353240298,1739704244722,-150.03,8.853e-05,2]
[353240299,1739704244731,-637.0,8.853e-05,2]
[353240300,1739704244740,-150.03,8.853e-05,2]
[353240301,1739704244750,-500.0,8.853e-05,2]
[353240302,1739704244760,-150.03,8.853e-05,2]
[353240303,1739704244769,-500.0,8.853e-05,2]
[353240304,1739704244779,-500.0,8.853e-05,2]
[353240305,1739704244788,-166.90657299,8.853e-05,2]
[353240306,1739704244798,-150.03,8.853e-05,2]
[353240307,1739704244808,-150.03,8.853e-05,2]
[353240308,1739704244817,-150.17031174,8.853e-05,2]
[353240309,1739704244828,-216.4313509,8.853e-05,2]
[353240310,1739704244837,-500.66817577,8.87e-05,2]
[353240311,1739704244848,-2681.51101749,8.873e-05,2]
[353240312,1739704244857,-1000.0,8.898e-05,2]
[353240313,1739704244866,-1425.97346468,8.904e-05,2]
[353240314,1739704244876,-22616.65991141,8.909e-05,2]
[353240315,1739704244885,-500.0,8.923e-05,2]
[353240316,1739704244895,-500.0,8.924e-05,2]
[353240317,1739704244904,-1254.94,8.924e-05,2]
[353240318,1739704244915,-500.0,8.924e-05,2]
[353240319,1739704244925,-3538.05,8.924e-05,2]
[353240320,1739704244934,-500.0,8.924e-05,2]
[353240321,1739704244943,-500.0,8.924e-05,2]
[353240322,1739704244953,-500.0,8.924e-05,2]
[353240323,1739704244964,-500.0,8.924e-05,2]
[353240324,1739704244974,-2982.34,8.924e-05,2]
[353240325,1739704244987,-7046.29,8.924e-05,2]
[353240326,1739704244997,-1574.08,8.924e-05,2]
[353240327,1739704245006,-1245.65,8.924e-05,2]
[353240328,1739704245016,-2556.71,8.924e-05,2]
[353240329,1739704245027,-500.0,8.924e-05,2]
[353240330,1739704245036,-3140.13,8.924e-05,2]
[353240331,1739704245046,-500.0,8.924e-05,2]
[353240332,1739704245057,-500.0,8.924e-05,2]
[353240333,1739704245067,-681.42,8.924e-05,2]
[353240334,1739704245077,-500.0,8.924e-05,2]
[353240335,1739704245086,-819.65,8.924e-05,2]
[353240336,1739704245096,-500.0,8.924e-05,2]
[353240337,1739704245105,-2539.33,8.924e-05,2]
[353240338,1739704245115,-500.0,8.924e-05,2]
[353240339,1739704245124,-6238.48,8.924e-05,2]
[353240340,1739704245132,-500.0,8.924e-05,2]
[353240341,1739704245142,-965.67,8.924e-05,2]
[353240342,1739704245151,-500.0,8.925e-05,2]
[353240343,1739704245161,-500.0,8.926e-05,2]
[353240344,1739704245171,-500.0,8.926e-05,2]
[353240345,1739704245181,-500.0,8.926e-05,2]
[353240346,1739704245190,-500.0,8.926e-05,2]
[353240347,1739704245199,-502.83508631,8.926e-05,2]
[353240348,1739704245208,-500.0,8.926e-05,2]
[353240349,1739704245218,-500.0,8.926e-05,2]
[353240350,1739704245227,-500.0,8.926e-05,2]
[353240351,1739704245237,-500.0,8.926e-05,2]
[353240352,1739704245246,-500.0,8.926e-05,2]
[353240353,1739704245255,-826.71,8.926e-05,2]
[353240354,1739704245265,-500.0,8.926e-05,2]
[353240355,1739704245275,-500.0,8.926e-05,2]
[353240356,1739704245284,-500.0,8.926e-05,2]
[353240357,1739704245294,-500.0,8.926e-05,2]
[353240358,1739704245304,-500.0,8.926e-05,2]
[353240359,1739704245313,-500.0,8.926e-05,2]
[353240360,1739704245323,-684.66,8.926e-05,2]
[353240361,1739704245332,-500.0,8.926e-05,2]
[353240362,1739704245342,-500.0,8.926e-05,2]
[353240363,1739704245351,-727.98,8.926e-05,2]
[353240364,1739704245361,-500.0,8.926e-05,2]
[353240365,1739704245370,-500.0,8.926e-05,2]
[353240366,1739704245379,-500.0,8.926e-05,2]
[353240367,1739704245389,-935.71,8.926e-05,2]
[353240368,1739704245399,-500.0,8.926e-05,2]
[353240369,1739704245408,-500.0,8.926e-05,2]
[353240371,1739704245420,-500.0,8.926e-05,2]
[353240373,1739704245431,-500.0,8.926e-05,2]
[353240374,1739704245440,-500.0,8.926e-05,2]
[353240375,1739704245450,-500.0,8.926e-05,2]
[353240376,1739704245459,-500.0,8.926e-05,2]
[353240377,1739704245468,-500.0,8.926e-05,2]
[353240380,1739704245478,-500.0,8.926e-05,2]
[353240381,1739704245489,-500.0,8.926e-05,2]
[353240382,1739704245498,-500.0,8.926e-05,2]
[353240383,1739704245508,-723.15,8.926e-05,2]
[353240384,1739704245518,-500.0,8.926e-05,2]
[353240386,1739704245528,-346.69931981,8.926e-05,2]
[353240387,1739704245537,-516.6,8.926e-05,2]
[353240388,1739704245547,-924.77,8.926e-05,2]
[353240389,1739704245556,-500.0,8.926e-05,2]
[353240390,1739704245639,-500.0,8.926e-05,2]
[353240391,1739704245656,-500.0,8.926e-05,2]
[353240392,1739704245666,-500.0,8.926e-05,2]
[353240393,1739704245675,-500.0,8.926e-05,2]
[353240395,1739704245684,-500.0,8.926e-05,2]
[353240396,1739704245694,-500.0,8.926e-05,2]
[353240399,1739704245703,-500.0,8.926e-05,2]
[353240400,1739704245713,-500.0,8.926e-05,2]
[353240401,1739704245722,-500.0,8.926e-05,2]
[353240402,1739704245732,-500.0,8.926e-05,2]
[353240404,1739704245742,-500.0,8.926e-05,2]
[353240406,1739704245751,-773.59,8.926e-05,2]
[353240407,1739704245761,-710.14,8.926e-05,2]
[353240408,1739704245770,-500.0,8.926e-05,2]
[353240409,1739704245779,-500.0,8.926e-05,2]
[353240410,1739704245789,-500.0,8.926e-05,2]
[353240411,1739704245798,-500.0,8.926e-05,2]
[353240412,1739704245808,-500.0,8.926e-05,2]
[353240413,1739704245817,-500.0,8.926e-05,2]
[353240414,1739704245826,-500.0,8.926e-05,2]
[353240415,1739704245835,-500.0,8.926e-05,2]
[353240416,1739704245845,-500.0,8.926e-05,2]
[353240418,1739704245856,-673.14,8.926e-05,2]
[353240419,1739704245865,-500.0,8.926e-05,2]
[353240420,1739704245874,-500.0,8.926e-05,2]